bitfinex/quotes_ETHUSD_20241204
["timestamp","ask_amount","ask_price","bid_price","bid_amount"]
[1733275115078,0.24729306,3698.0,3696.9,1.5608]
[1733275115268,0.24729306,3697.9,3696.9,1.5608]
[1733275115465,0.24729306,3697.8,3697.1,2.7048]
[1733275115665,0.24729306,3697.7,3697.3,2.70462]
[1733275115982,0.24729306,3698.7,3697.5,1.5497]
[1733275116182,0.24729306,3698.6,3697.5,1.5497]
[1733275116364,1.04735081,3699.2,3697.5,1.5497]
[1733275116365,0.24729306,3698.5,3697.5,1.5497]
[1733275116570,0.24729306,3698.4,3697.5,1.5497]
[1733275116775,0.24729306,3698.3,3697.5,1.5497]
[1733275116973,0.24729306,3699.0,3697.8,2.7043]
[1733275117201,0.24729306,3698.9,3697.9,2.70423]
[1733275117402,1.6571,3699.5,3698.2,1.6346]
[1733275117403,0.24729306,3698.8,3698.2,1.6346]
[1733275117622,0.24729306,3699.4,3698.3,2.70389]
[1733275117816,1.68606446,3700.0,3698.2,1.6346]
[1733275117817,0.24729306,3699.3,3698.2,1.6346]
[1733275118124,1.68606446,3700.2,3699.0,4.33801]
[1733275118125,0.24729306,3699.2,3699.0,4.33801]
[1733275118328,1.12404297,3700.2,3699.0,4.33801]
[1733275118329,0.24729306,3700.1,3699.0,1.6346]
[1733275118480,2.70254,3700.3,3699.0,1.6346]
[1733275118481,0.24729306,3700.0,3699.0,1.6346]
[1733275118824,0.24729306,3700.2,3699.0,1.6346]
[1733275118994,0.24729306,3700.5,3699.6,2.70299]
[1733275119178,0.24729306,3700.6,3699.5,1.5158]
[1733275119381,2.70199,3701.0,3699.7,2.7029]
[1733275119677,0.5578926,3700.9,3699.5,1.5158]
[1733275119910,2.95341456,3700.9,3699.5,1.5158]
[1733275120090,2.70213,3700.8,3699.5,1.5158]
[1733275120302,2.70237,3700.5,3699.5,1.5158]
[1733275120621,1.37535753,3700.9,3699.5,1.5158]
[1733275120827,0.82265311,3700.8,3699.5,1.5158]
[1733275121122,3.82265311,3700.8,3699.5,1.5158]
[1733275121279,1.06994617,3700.8,3699.5,1.5158]
[1733275121475,3.0,3700.5,3699.5,1.5158]
[1733275121707,0.24729306,3700.5,3699.5,1.5158]
[1733275121910,0.25131456,3700.4,3699.5,1.5158]
[1733275122284,2.70307,3699.5,3698.4,1.5081]
[1733275122516,0.25095851,3699.4,3698.4,1.5081]
[1733275122717,2.70344,3699.0,3698.4,1.5081]
[1733275122940,0.25095851,3698.9,3698.4,1.5081]
[1733275123085,0.25095851,3698.9,3697.1,1.5081]
[1733275123287,2.70351,3698.9,3697.6,1.5081]
[1733275123523,2.95453851,3698.8,3697.6,1.5081]
[1733275123829,0.44935685,3698.9,3697.6,1.5081]
[1733275123830,2.70375,3698.6,3697.6,1.5081]
[1733275123999,4.2424,3699.2,3697.6,1.5081]
[1733275124000,0.25095851,3698.5,3697.6,1.5081]
[1733275124199,5.70364,3698.8,3697.6,1.5081]
[1733275124398,0.49825157,3698.7,3697.6,1.5081]
[1733275124601,0.25095851,3698.6,3697.7,2.70438]
[1733275124932,0.25095851,3698.9,3697.6,1.65891]
[1733275125094,0.25095851,3699.0,3697.9,2.70421]
[1733275125477,0.25095851,3699.2,3698.1,1.5381]
[1733275125734,0.25095851,3699.2,3698.2,2.70397]
[1733275125888,0.25095851,3699.2,3698.1,1.962321]
[1733275126088,0.25095851,3699.2,3698.2,2.70401]
[1733275126422,2.70329,3699.2,3698.1,1.5381]
[1733275126630,1.5026,3699.0,3697.1,1.5656]
[1733275126787,1.5026,3699.0,3697.2,0.427051]
[1733275126991,2.70396,3698.3,3697.2,0.427051]
[1733275127189,2.70416,3698.0,3697.1,1.5656]
[1733275127441,0.25095851,3697.9,3697.1,1.5656]
[1733275127725,1.93099021,3698.1,3697.1,1.5656]
[1733275127926,0.3,3698.2,3697.1,1.5656]
[1733275128125,0.40489021,3698.2,3697.1,1.5656]
[1733275128931,0.25095851,3698.4,3697.1,1.5656]
[1733275129130,2.70411,3698.1,3697.1,1.5656]
[1733275129363,0.40496816,3698.0,3697.1,1.5656]
[1733275129659,3.10892816,3698.3,3697.1,1.5656]
[1733275129824,0.40496816,3698.2,3697.1,1.5656]
[1733275130029,0.40496816,3698.2,3697.3,2.70465]
[1733275130224,3.0,3698.4,3697.1,1.5656]
[1733275130475,0.40496816,3698.3,3697.1,1.5656]
[1733275130766,2.70434,3697.8,3697.1,1.5656]
[1733275130924,0.25095851,3697.7,3697.1,1.5656]
[1733275131125,3.24663022,3698.1,3697.1,1.5656]
[1733275131126,0.4051003,3698.0,3697.1,1.72216]
[1733275131323,0.25095851,3698.4,3697.3,2.70466]
[1733275131576,0.4051003,3698.7,3697.8,1.5714]
[1733275131730,0.25095851,3698.6,3697.8,1.5714]
[1733275131931,0.4051003,3698.8,3697.8,1.5714]
[1733275132125,0.4051003,3698.8,3697.1,0.15656]
[1733275132126,2.70382,3698.5,3697.3,1.5338]
[1733275132445,0.40585947,3698.4,3697.3,1.5338]
[1733275132769,0.25171768,3698.3,3697.3,1.5338]
[1733275133010,0.25171768,3698.8,3697.8,2.70429]
[1733275133264,0.25171768,3698.9,3698.2,2.704]
[1733275133421,1.6405,3699.7,3698.5,2.70378]
[1733275133422,0.40585947,3699.4,3698.5,2.70378]
[1733275133623,2.70278,3699.9,3698.0,2.70416]
[1733275133624,0.25171768,3699.3,3698.6,2.7037]
[1733275133852,0.25171768,3699.2,3698.3,0.02703756]
[1733275134050,0.25171768,3699.4,3698.7,2.70362]
[1733275134326,0.40585947,3699.9,3698.9,2.70349]
[1733275134557,0.40585947,3699.8,3698.9,2.70349]
[1733275134862,0.40585947,3699.7,3699.0,1.5939]
[1733275135068,0.40585947,3700.2,3699.3,2.70314]
[1733275135230,0.25171768,3700.1,3699.4,2.70313]
[1733275135432,0.25171768,3700.2,3699.2,2.70328]
[1733275135653,2.70199,3701.0,3699.7,1.5939]
[1733275135982,0.58448562,3700.9,3699.3,1.5939]
[1733275136143,0.15437662,3700.8,3699.6,2.70298]
[1733275136340,0.15437662,3700.7,3699.6,2.70298]
[1733275136584,2.70228,3700.6,3699.3,4.29706]
[1733275136752,0.15437662,3700.5,3699.4,0.0270298]
[1733275136945,3.0,3701.5,3699.4,0.0270298]
[1733275136946,0.15437662,3701.0,3700.1,1.5939]
[1733275137146,1.5991,3701.5,3700.1,1.5939]
[1733275137147,0.15437662,3701.3,3700.2,2.70255]
[1733275137355,0.15437662,3701.4,3700.1,1.62092387]
[1733275137583,0.52956245,3701.9,3699.8,3.52208814]
[1733275137584,0.28255985,3701.9,3700.5,2.70232]
[1733275137885,0.28255985,3701.9,3700.2,1.75599239]
[1733275138045,0.43693647,3701.9,3700.3,2.70248]
[1733275138242,0.15437662,3701.8,3700.2,1.75599239]
[1733275138449,0.28255985,3701.9,3700.6,2.70223]
[1733275138649,3.13826647,3701.9,3700.6,2.70223]
[1733275138919,3.13826647,3701.9,3700.3,0.44586824]
[1733275138920,2.70147,3701.7,3700.3,0.47288845]
[1733275139185,0.15437662,3701.6,3700.3,2.70246]
[1733275139349,1.5504,3701.5,3700.2,1.75599239]
[1733275139545,1.5504,3701.5,3700.2,1.5939]
[1733275139744,1.5504,3701.5,3699.2,1.5369]
[1733275139966,3.0,3701.3,3700.2,1.5369]
[1733275140174,0.15437662,3701.2,3701.0,2.70194]
[1733275140349,1.6207,3703.0,3701.1,1.836494]
[1733275140575,1.6207,3703.0,3700.4,3.62208814]
[1733275140576,1.6207,3703.0,3701.8,2.70136]
[1733275140772,4.32082,3703.6,3701.5,1.5663]
[1733275141063,1.6207,3704.1,3702.4,1.5663]
[1733275141265,1.7344,3705.3,3702.7,2.70071]
[1733275141504,1.6344,3704.6,3702.7,2.70067]
[1733275141679,3.16102755,3704.5,3702.5,2.70087]
[1733275141893,1.6344,3704.6,3702.4,1.5663]
[1733275141894,1.6344,3704.6,3702.6,0.02700422]
[1733275142090,2.69965,3704.2,3702.6,2.70076]
[1733275142418,3.0,3704.4,3702.8,2.70063]
[1733275142625,2.69945,3704.5,3703.0,1.5563]
[1733275142626,2.86289,3704.5,3703.0,1.5563]
[1733275142928,0.16344,3704.5,3703.2,2.70031]
[1733275143081,0.16344,3704.5,3703.3,2.70027]
[1733275143276,0.16344,3704.5,3703.0,1.5563]
[1733275143508,2.69926,3704.8,3703.1,2.70041]
[1733275143821,2.69926,3704.8,3703.0,1.5563]
[1733275144132,2.6995,3704.4,3703.0,1.5563]
[1733275144339,3.0,3705.1,3703.0,1.5563]
[1733275144536,2.69952,3704.4,3703.0,1.5563]
[1733275145329,2.6993,3704.7,3703.0,1.5563]
[1733275145491,3.0,3704.9,3703.4,2.70018]
[1733275145824,3.1607,3705.0,3703.4,2.70018]
[1733275146025,3.1607,3705.0,3703.5,1.565]
[1733275146198,0.31607,3704.9,3703.5,4.26514]
[1733275146397,0.28227717,3705.6,3703.7,1.5185]
[1733275146610,2.69943,3704.5,3703.7,1.5185]
[1733275146982,2.69924,3704.8,3703.7,1.5185]
[1733275147210,2.69934,3704.6,3703.7,1.5185]
[1733275147426,2.69959,3704.3,3703.7,1.5185]
[1733275147632,2.69937,3704.6,3703.7,1.5185]
[1733275147806,4.890024,3704.7,3703.7,1.5185]
[1733275148206,7.589344,3704.7,3703.7,1.5185]
[1733275148425,6.4582944,3704.6,3703.7,1.5185]
[1733275148899,6.4582944,3704.6,3702.6,3.52208814]
[1733275148900,3.7589344,3704.6,3702.8,1.6223]
[1733275149100,2.69977,3704.1,3702.8,1.6223]
[1733275149404,2.69954,3704.4,3702.9,2.70054]
[1733275150090,2.69969,3704.2,3702.8,1.6223]
[1733275150323,0.56489584,3704.5,3702.8,1.6223]
[1733275150324,2.69991,3703.9,3702.8,1.6223]
[1733275150546,2.70008,3703.6,3702.8,1.6223]
[1733275150737,0.56489584,3704.5,3703.0,1.5102]
[1733275151029,3.0,3704.7,3703.1,0.02699838]
[1733275151337,1.6392,3705.1,3703.8,2.69991]
[1733275151494,3.52208814,3706.5,3703.4,0.02699459]
[1733275151843,2.69864,3705.6,3704.1,2.69966]
[1733275152008,1.6392,3706.0,3703.8,1.5102]
[1733275152215,2.69907,3705.0,3703.8,1.5102]
[1733275152415,0.269907,3704.9,3703.8,1.5102]
[1733275152610,2.69886,3705.3,3703.9,2.69983]
[1733275152929,2.69901,3705.1,3703.8,1.5102]
[1733275153084,2.69881,3705.4,3703.9,0.02699591]
[1733275153284,0.269881,3705.3,3703.8,1.5102]
[1733275153535,2.69881,3705.4,3703.8,1.5102]
[1733275153835,3.0,3705.6,3704.1,2.69966]
[1733275153987,4.33754,3706.0,3704.2,1.6869932]
[1733275153988,1.6392,3706.0,3704.2,1.6869932]
[1733275154191,2.69859,3705.7,3704.2,1.66]
[1733275154442,0.16392,3705.9,3704.2,1.66]
[1733275154584,0.16392,3705.9,3704.5,2.69937]
[1733275154787,2.86234,3705.9,3704.5,2.69937]
[1733275154988,0.16392,3705.9,3704.2,1.66]
[1733275155297,0.180312,3705.8,3704.2,1.66]
[1733275155649,3.0,3705.6,3704.2,1.66]
[1733275155853,0.180312,3705.8,3704.2,1.66]
[1733275156036,2.69864,3705.6,3704.2,1.66]
[1733275156362,2.6987,3705.5,3704.2,1.66]
[1733275156888,2.6988,3705.4,3704.2,1.66]
[1733275157027,4.535,3705.3,3704.2,1.66]
[1733275157226,4.535,3705.3,3702.5,0.1]
[1733275157227,4.535,3705.3,3703.7,1.5261]
[1733275157462,0.4535,3705.2,3703.7,1.5261]
[1733275157666,3.15244,3705.2,3703.7,4.22607]
[1733275157964,2.69833,3706.0,3704.6,2.69933]
[1733275158357,2.69841,3705.9,3704.3,4.22154]
[1733275158530,2.69922,3704.8,3704.3,1.522]
[1733275158730,0.269922,3704.7,3702.6,1.5884]
[1733275158930,2.69847,3705.8,3703.7,1.5884]
[1733275159159,2.69847,3705.8,3702.3,2.70101]
[1733275159160,4.6502,3704.9,3702.2,1.5884]
[1733275159362,1.6431,3704.0,3702.2,1.5884]
[1733275159564,2.70104,3702.3,3700.9,2.70198]
[1733275159874,2.70083,3702.6,3701.0,0.431728]
[1733275160033,2.70083,3702.6,3701.3,2.70173]
[1733275160235,3.0,3703.0,3701.1,1.64203373]
[1733275160236,5.70051,3703.0,3701.1,1.64203373]
[1733275160586,3.0,3702.7,3701.8,0.4992]
[1733275160734,3.0,3702.3,3701.8,0.4992]
[1733275161268,2.70013,3703.6,3701.8,0.4992]
[1733275161269,2.70076,3702.7,3701.8,0.4992]
[1733275161433,1.6431,3703.2,3701.9,1.6153]
[1733275161933,2.70068,3702.8,3701.9,1.6153]
[1733275162132,2.70048,3703.1,3701.9,1.6153]
[1733275162363,2.70061,3702.9,3701.9,1.6153]
[1733275162736,2.70066,3702.8,3701.9,1.6153]
[1733275162934,2.70075,3702.7,3701.9,1.6153]
[1733275163142,4.34348,3703.2,3701.9,1.6153]
[1733275163143,3.0,3703.1,3701.9,1.6153]
[1733275163348,1.5968,3704.5,3701.9,1.6076]
[1733275163544,1.5968,3704.5,3702.9,1.6076]
[1733275163750,2.69949,3704.4,3702.9,1.6076]
[1733275164057,2.8476593,3704.3,3702.9,1.6076]
[1733275164267,2.70009,3703.6,3702.9,1.6076]
[1733275164634,2.69963,3704.2,3702.9,1.6076]
[1733275164835,2.69994,3703.8,3702.9,1.6076]
[1733275165282,0.269963,3704.1,3702.1,1.5322]
[1733275165283,2.70022,3703.4,3702.1,1.5322]
[1733275166080,2.69994,3703.8,3702.1,1.55920864]
[1733275166286,2.70009,3703.6,3702.1,1.5322]
[1733275166570,0.14854249,3703.5,3702.3,2.70099]
[1733275166771,0.14854249,3703.9,3702.3,2.70099]
[1733275166984,0.14854249,3703.8,3702.2,0.17455814]
[1733275167181,0.14854249,3703.9,3702.5,1.6094]
[1733275167355,2.84848249,3703.8,3702.5,1.6094]
[1733275167561,0.43339074,3703.7,3702.5,1.6094]
[1733275167761,1.5059,3705.2,3702.8,1.5588]
[1733275167973,1.5059,3705.2,3703.3,1.5588]
[1733275168286,2.69921,3704.8,3703.6,1.5806]
[1733275168462,0.1489007,3704.7,3703.6,1.5806]
[1733275168798,0.1489007,3704.6,3703.6,1.73866]
[1733275168945,0.1489007,3704.5,3703.6,1.73866]
[1733275169150,0.1489007,3704.4,3703.8,2.69991]
[1733275169351,1.6609,3705.6,3703.6,1.73866]
[1733275169352,0.1489007,3704.3,3703.6,1.73866]
[1733275169600,0.1489007,3704.2,3703.7,0.173866]
[1733275169750,0.1489007,3704.1,3703.7,0.173866]
[1733275169948,0.14920291,3704.0,3703.7,0.173866]
[1733275170252,2.69931,3704.7,3703.7,0.173866]
[1733275170452,0.14922034,3704.6,3703.6,1.5806]
[1733275170647,0.14922034,3704.5,3703.6,1.5806]
[1733275170876,0.14922034,3704.4,3703.6,1.5806]
[1733275171181,0.14922034,3704.3,3703.6,1.5806]
[1733275171396,2.69922,3704.8,3703.6,1.5806]
[1733275171684,0.14923414,3704.7,3703.6,1.5806]
[1733275171846,2.84857414,3704.6,3703.6,1.5806]
[1733275172051,2.84866414,3704.5,3703.6,1.5806]
[1733275172374,2.84877414,3704.4,3702.3,1.5228]
[1733275172576,3.14923414,3704.3,3703.2,1.5228]
[1733275172761,0.14923414,3704.2,3703.2,1.5228]
[1733275172959,0.14923414,3704.1,3703.2,1.5228]
[1733275173173,0.14923414,3704.0,3703.2,1.5228]
[1733275173570,1.542,3705.0,3703.2,4.2231]
[1733275173571,0.1492375,3703.9,3703.2,4.2231]
[1733275173785,0.1492375,3703.8,3703.2,1.5228]
[1733275173985,0.1492375,3703.7,3703.2,1.5228]
[1733275174294,3.0,3705.1,3703.2,1.5228]
[1733275174295,0.1492375,3703.6,3703.4,2.70016]
[1733275174595,1.88223501,3706.1,3704.4,1.6333]
[1733275174799,0.4580475,3706.0,3704.4,1.6333]
[1733275175289,2.69835,3706.0,3704.4,1.6333]
[1733275175792,4.28588,3706.1,3704.7,2.69926]
[1733275175993,4.28588,3706.1,3704.4,1.6333]
[1733275175994,1.5876,3706.1,3704.4,1.6333]
[1733275176150,2.69826,3706.1,3704.8,2.69918]
[1733275176350,0.269826,3706.0,3704.9,1.6488]
[1733275176591,3.269826,3706.0,3704.9,1.6488]
[1733275176763,1.5985,3707.0,3705.0,1.6488]
[1733275176951,4.29611,3707.0,3705.1,2.69896]
[1733275177162,2.69787,3706.7,3705.3,2.69883]
[1733275177354,0.269787,3706.6,3705.7,1.6383]
[1733275177694,1.5985,3707.0,3705.7,1.6383]
[1733275177862,2.69784,3706.7,3705.7,1.6383]
[1733275178052,2.69775,3706.8,3705.7,1.6383]
[1733275178481,1.5985,3707.0,3705.7,1.6383]
[1733275178788,0.56772992,3706.9,3705.7,1.6383]
[1733275179301,2.69801,3706.5,3705.7,1.6383]
[1733275179458,2.69802,3706.5,3705.7,1.6383]
[1733275179800,2.69783,3706.7,3705.7,1.6383]
[1733275179997,0.32655599,3706.6,3705.7,1.6383]
[1733275180359,2.6979,3706.6,3705.7,1.6383]
[1733275180716,0.56772992,3706.9,3705.7,1.6383]
[1733275180999,2.6979,3706.6,3705.7,1.6383]
[1733275181168,3.0,3706.7,3705.7,1.6383]
[1733275181359,2.69812,3706.3,3705.7,1.6383]
[1733275181556,2.69794,3706.6,3705.7,1.6383]
[1733275181759,2.69783,3706.7,3705.7,1.6383]
[1733275182961,0.56772992,3706.9,3705.7,1.6383]
[1733275183156,3.26539992,3706.9,3705.7,1.6383]
[1733275183399,3.0,3706.8,3705.7,1.6383]
[1733275183615,2.69806,3706.4,3705.7,1.6383]
[1733275183819,0.269806,3706.3,3705.7,1.6383]
[1733275184603,2.69788,3706.7,3705.7,1.6383]
[1733275184786,2.69761,3707.0,3705.8,2.69846]
[1733275185310,2.69761,3707.0,3705.7,4.33684]
[1733275185605,0.40788592,3706.9,3705.8,2.69846]
[1733275185843,4.38124922,3707.1,3705.8,2.69846]
[1733275185844,3.0,3707.0,3705.8,2.69846]
[1733275186420,0.14678674,3706.9,3705.8,2.69846]
[1733275186731,0.14678674,3706.9,3705.7,1.6383]
[1733275186732,0.14678674,3706.9,3705.9,2.69838]
[1733275187042,2.69781,3706.7,3705.7,0.2]
[1733275187219,0.59377641,3706.6,3705.7,0.2]
[1733275187550,0.14678674,3706.5,3705.7,0.2]
[1733275187720,2.69818,3706.2,3705.7,0.2]
[1733275187920,0.14678674,3706.1,3705.7,0.2]
[1733275188506,2.84483674,3706.4,3705.7,0.2]
[1733275188808,0.14678674,3706.3,3705.7,0.2]
[1733275189235,0.11528393,3706.4,3705.8,1.6425]
[1733275189444,3.0,3707.0,3705.9,0.18425]
[1733275189653,2.68290978,3707.4,3705.8,1.6425]
[1733275189654,2.69772,3706.9,3705.8,1.6425]
[1733275189859,0.00771042,3706.2,3705.8,1.6425]
[1733275194776,0.00771042,3706.2,3705.7,0.2]
[1733275194777,0.00771042,3706.2,3706.1,4.20775]
[1733275198395,0.00771042,3706.2,3706.1,1.5095]
[1733275199300,0.00771042,3706.2,3706.1,4.3587]
[1733275201126,0.00771042,3706.2,3706.1,1.5095]
[1733275201294,0.00771042,3706.2,3705.7,1.809]
[1733275201495,0.00771042,3706.2,3705.7,0.2]
[1733275201716,1.61281042,3706.2,3705.7,0.2]
[1733275202030,2.69847,3705.8,3705.7,0.2]
[1733275202190,2.69906,3705.0,3704.2,1.6411]
[1733275202390,1.5278,3705.6,3704.1,2.6997]
[1733275202629,6.59129933,3706.2,3704.2,0.02699285]
[1733275202630,0.1462743,3705.5,3704.2,0.02699285]
[1733275202830,0.1462743,3706.1,3704.5,1.6411]
[1733275203133,0.1462743,3706.0,3704.6,0.02698932]
[1733275203428,0.1462743,3706.0,3704.4,2.69949]
[1733275203429,0.1462743,3706.1,3705.3,2.69882]
[1733275203605,0.00771042,3706.2,3705.3,2.69882]
[1733275204100,2.8445443,3706.1,3704.9,1.6411]
[1733275204302,0.1462743,3706.0,3704.4,1.6411]
[1733275204502,3.6712433,3706.2,3703.6,0.2704]
[1733275204503,1.5278,3705.8,3703.9,1.6411]
[1733275204825,3.6712433,3706.2,3703.9,1.6411]
[1733275204826,2.69906,3705.0,3703.9,1.6411]
[1733275205040,4.5278,3705.6,3703.9,1.6411]
[1733275205041,0.1462743,3704.9,3703.9,1.6411]
[1733275205189,1.7384743,3704.8,3703.9,1.6411]
[1733275205391,1.7384743,3704.8,3702.8,2.70062]
[1733275205392,2.69957,3704.3,3703.5,1.6247]
[1733275205703,2.69993,3703.8,3702.9,1.6247]
[1733275205928,1.5408,3704.0,3702.9,1.6247]
[1733275206129,0.14653538,3703.9,3702.9,4.32527]
[1733275206335,0.14653538,3703.9,3702.9,1.78717]
[1733275206625,1.5408,3704.0,3702.9,1.78717]
[1733275206827,0.14653538,3703.9,3703.5,2.70011]
[1733275207131,0.14653538,3704.4,3703.5,2.70011]
[1733275207289,1.5847,3704.5,3702.9,1.78717]
[1733275207491,0.14653538,3704.4,3702.9,1.81417332]
[1733275207850,3.0,3705.3,3702.9,1.81417332]
[1733275207851,0.14653538,3704.6,3704.5,1.6462]
[1733275207989,0.14630233,3705.8,3704.5,1.6462]
[1733275208192,0.14630233,3706.3,3704.7,3.52208814]
[1733275208477,0.14630233,3707.0,3706.7,3.5e-07]
[1733275208633,0.14630233,3707.0,3706.1,1.5932]
[1733275208983,4.0,3706.8,3706.1,1.5932]
[1733275209184,4.0,3706.8,3706.5,3.5e-07]
[1733275209334,1.36366013,3707.7,3706.5,3.5e-07]
[1733275209535,1.33685764,3707.5,3706.5,3.5e-07]
[1733275209787,1.39408982,3707.3,3706.5,3.5e-07]
[1733275210083,1.38124922,3707.1,3706.5,3.5e-07]
[1733275210247,0.14629737,3707.0,3706.5,3.5e-07]
[1733275210433,0.14629737,3706.9,3706.5,3.5e-07]
[1733275210633,0.14629737,3706.8,3706.5,3.5e-07]
[1733275210882,0.14629737,3706.7,3706.5,3.5e-07]
[1733275211175,0.14629737,3706.6,3706.5,3.5e-07]
[1733275211376,3.14629737,3706.6,3706.5,3.5e-07]
[1733275211588,4.52814439,3706.6,3706.5,3.5e-07]
[1733275212340,6.85197816,3706.6,3706.5,3.5e-07]
[1733275212539,9.59598794,3706.6,3706.5,3.5e-07]
[1733275212836,8.48237816,3706.6,3704.6,1.6059]
[1733275213039,2.69854,3705.7,3704.6,1.6059]
[1733275213365,0.14629737,3705.6,3704.6,1.6059]
[1733275213574,2.69899,3705.1,3703.7,2.69999]
[1733275213878,0.14629737,3705.0,3704.1,2.6997]
[1733275214062,3.0,3705.8,3704.1,2.6997]
[1733275214063,3.0,3705.4,3704.2,1.87587]
[1733275214264,0.14629737,3705.3,3704.2,1.6059]
[1733275214466,0.14629737,3705.2,3704.2,1.6059]
[1733275214776,1.77339737,3705.1,3703.6,1.6089]
[1733275215081,0.32363711,3705.0,3703.6,1.6089]
[1733275215279,2.69965,3704.2,3703.0,1.6089]
[1733275215450,1.6542,3704.1,3703.0,1.6089]
[1733275215778,2.69994,3703.8,3702.5,1.6401]
[1733275215989,0.14614709,3703.7,3702.5,4.34095]
[1733275216203,2.69995,3703.8,3702.5,1.6401]
[1733275216352,0.481962,3703.9,3702.5,1.6401]
[1733275216684,2.70002,3703.7,3702.5,1.6401]
[1733275217063,0.1460148,3703.6,3702.5,1.6401]
[1733275217396,0.1460148,3703.6,3701.8,0.4992]
[1733275217397,3.0,3703.3,3701.8,0.4992]
[1733275217548,1.7547656,3703.2,3701.8,0.4992]
[1733275218492,4.0,3703.1,3701.9,1.6068]
[1733275218685,0.1458656,3703.0,3701.9,1.6068]
[1733275218992,4.0,3703.1,3701.9,1.6068]
[1733275219161,0.481962,3703.9,3702.7,1.507]
[1733275219486,2.69956,3704.3,3702.7,1.507]
[1733275219709,2.69982,3704.0,3702.7,1.507]
[1733275220169,2.69989,3703.9,3702.7,1.507]
[1733275220558,1.6009,3704.4,3702.7,1.507]
[1733275220559,3.0,3704.2,3702.7,1.507]
[1733275220762,1.17559255,3704.1,3702.7,1.507]
[1733275220977,1.030046,3704.1,3702.7,1.507]
[1733275221446,2.69989,3703.9,3702.7,1.507]
[1733275221643,1.030046,3704.1,3702.7,1.507]
[1733275221644,2.69994,3703.8,3702.7,1.507]
[1733275221849,2.70016,3703.5,3702.7,1.507]
[1733275222093,1.5669,3703.9,3702.3,1.6204]
[1733275222250,2.69997,3703.8,3702.4,2.70093]
[1733275222446,2.69997,3703.8,3702.3,1.6204]
[1733275222447,2.70052,3703.0,3702.3,1.6204]
[1733275222652,2.69992,3703.8,3701.9,1.5118]
[1733275222653,1.6236,3703.2,3701.9,1.5118]
[1733275222893,3.0,3703.0,3701.9,1.5118]
[1733275223386,1.6236,3703.2,3701.9,1.5118]
[1733275223687,3.0,3703.0,3701.9,1.5118]
[1733275223887,0.46236,3702.9,3701.9,1.5118]
[1733275224088,1.6236,3703.2,3701.9,1.5118]
[1733275224296,2.70052,3703.0,3701.9,1.5118]
[1733275224456,1.6236,3703.2,3701.9,1.5118]
[1733275224652,1.52,3703.6,3701.9,1.5118]
[1733275224959,4.52,3703.6,3701.9,1.5118]
[1733275225163,1.52,3703.6,3702.0,0.471245]
[1733275225407,3.52208814,3704.4,3701.9,1.5118]
[1733275225688,1.80294781,3704.3,3702.5,2.70085]
[1733275226061,1.80294781,3704.3,3702.2,1.5673]
[1733275226267,1.6576,3704.3,3702.4,1.5673]
[1733275226487,2.69988,3703.9,3702.5,2.85759]
[1733275227251,2.69992,3703.9,3702.5,2.85759]
[1733275227478,2.69992,3703.9,3702.6,2.70079]
[1733275227880,0.18029478,3704.2,3702.4,1.5673]
[1733275228160,0.18029478,3704.2,3701.8,0.4992]
[1733275228161,3.0,3703.5,3701.8,0.4992]
[1733275228465,2.70057,3703.0,3701.8,0.4992]
[1733275228884,4.6436,3703.2,3701.8,0.4992]
[1733275228885,1.6436,3703.2,3701.8,0.4992]
[1733275229213,4.0,3702.8,3701.8,0.4992]
[1733275229800,4.0,3702.8,3701.8,3.20057]
[1733275230369,4.0,3702.8,3701.8,0.4992]
[1733275230560,5.70045,3703.1,3701.8,0.4992]
[1733275230756,0.734405,3703.0,3701.8,0.4992]
[1733275231068,2.7008,3702.6,3701.8,0.4992]
[1733275231275,3.0,3702.5,3701.8,0.4992]
[1733275231477,2.70095,3702.4,3701.8,0.4992]
[1733275231686,5.70058,3702.9,3701.8,0.4992]
[1733275231991,0.71570765,3702.8,3701.8,0.4992]
[1733275232154,2.70088,3702.5,3701.8,0.4992]
[1733275232360,0.570058,3702.8,3701.8,0.4992]
[1733275232674,0.1,3703.6,3700.2,1.081136]
[1733275232675,5.70138,3701.8,3700.2,1.5164]
[1733275232994,4.024898,3701.7,3700.2,1.5164]
[1733275233152,2.70172,3701.4,3700.2,1.5164]
[1733275234200,1.5617,3701.3,3699.2,1.5633]
[1733275234382,2.70213,3700.8,3699.5,2.70305]
[1733275234694,3.0,3701.1,3699.2,1.5633]
[1733275234902,2.70213,3700.8,3699.5,2.70306]
[1733275235069,2.70219,3700.7,3699.5,2.70306]
[1733275235473,3.0,3700.6,3699.2,4.26656]
[1733275235684,1.126348,3701.0,3699.2,1.5633]
[1733275236021,4.0,3700.5,3699.3,2.70319]
[1733275236861,4.0,3700.5,3699.8,2.70277]
[1733275237066,1.126348,3701.0,3700.1,1.5547]
[1733275237270,1.6545,3701.7,3700.1,1.5547]
[1733275237574,1.79969833,3701.7,3700.1,1.5547]
[1733275237755,2.70221,3700.7,3699.6,1.5916]
[1733275237961,2.7021,3700.9,3699.6,1.5916]
[1733275238308,2.7028,3699.9,3699.2,1.5735]
[1733275238660,2.7028,3699.9,3698.0,2.7041]
[1733275238661,2.7028,3699.9,3698.7,1.5735]
[1733275238860,3.0,3700.6,3698.7,1.5735]
[1733275239098,2.70301,3699.6,3698.7,1.5735]
[1733275239506,2.70316,3699.4,3698.7,1.5735]
[1733275239667,2.70322,3699.3,3698.1,1.5735]
[1733275239867,2.70322,3699.3,3698.2,0.427761]
[1733275240168,8.03468814,3699.8,3698.1,1.5735]
[1733275240366,3.0,3699.5,3698.1,1.5735]
[1733275240678,1.5126,3699.8,3698.1,1.5735]
[1733275241028,0.14517382,3700.0,3698.6,2.70365]
[1733275241213,1.5126,3700.2,3698.3,1.5735]